Workbook

Sheet CashFlow
B1: 75 Clark St New Britain
B4: Monthly Operating Income | C4: As Is | D4: Pro Forma | F4: ALL UTILITIES INCLUDED (Heat , Electric and hot water)
B5: Number of Units | C5: 11 | D5: 11 | E5: 9 - 1 Bedrooms | F5: Pro Forma: $1350
B6: Average Monthly Rent per Unit | C6: =C7/11 -> 1229.090909 | D6: 1386.36 | E6: 2 - 2 Bedrooms | F6: Pro Forma : $1550
B7: Total Rental Income | C7: 13520 | D7: =sum(D5*D6) -> 15249.96
B8: % Vacancy and Credit Losses | C8: 0.05 | D8: 0.05
B9: Total Vacancy Loss | C9: =C7*C8 -> 676 | D9: =D8*D7 -> 762.498
B10: Other Monthly Income (laundry, vending, parking, etc.) | C10: 200 | D10: 200 | E10: 2 Pet Fees, 1 M2M Fee
B11: Gross Monthly Operating Income | C11: =C7-C9+C10 -> 13044 | D11: 14687.462
B13: Monthly Operating Expenses
B14: Property Management Fees | C14: =C9 -> 676 | D14: =D11*0.05 -> 734.3731
B15: Repairs and Maintenance | C15: =C9 -> 676 | D15: =D11*0.05 -> 734.3731
B16: Real Estate Taxes | C16: 1953.87 | D16: 1953.87
B17: Rental Property Insurance | C17: 825 | D17: 825
B18: Landscaping | C18: 100 | D18: 100
B19: Cleaning | C19: 200 | D19: 200
B20: Common Utilities
B21: - Water and Sewer | C21: 604 | D21: 604
B22: - Garbage | C22: 319 | D22: 319
B23: - Electric | C23: 608 | D23: 608
B24: - Heat | C24: 583.33 | D24: 583.33
B25: Pest Control
B26: Accounting and Legal
B27: Advertising
B28: Monthly Operating Expenses | C28: =SUM(C14:C27) -> 6545.2 | D28: 6661.9462
B30: Net Operating Income (NOI)
B31: Total Annual Operating Income | C31: =C11*12 -> 156528 | D31: 176249.544
B32: Total Annual Operating Expense | C32: =C28*12 -> 78542.4 | D32: 79943.3544
B33: Annual Net Operating Income | C33: =C31-C32 -> 77985.6 | D33: 96306.1896
B35: Capitalization Rate and Valuation
B36: Desired Capitalization Rate | C36: 0.07 | D36: 0.07
B37: Property Valuation (Offer Price) | C37: =IF(C36=0," - ",C33/C36) -> 1114080 | D37: 1375802.709
B38: Actual Purchase Price | C38: 1150000 | D38: 1150000
B39: Actual Capitalization Rate | C39: =IF(C38=0," - ",C33/C38) -> 0.06781356522 | D39: 0.0837445127
B41: Loan Information
B42: Down Payment | C42: =C38*0.25 -> 287500 | D42: 287500 | E42: 25% Down
B43: Loan Amount | C43: =C38-C42 -> 862500 | D43: 862500 | E43: 75% LTV
B44: Acquisition Costs and Loan Fees | C44: =C38*0.0075 -> 8625 | D44: 8625 | E44: .75% of Ask Price
B45: Length of Mortgage (years) | C45: 30 | D45: 30
B46: Annual Interest Rate | C46: 0.06 | D46: 0.06
B47: Initial Investment | C47: =C42+C44 -> 296125 | D47: 296125
B48: Monthly Mortgage Payment (PI) | C48: =IF(C43=0,0,-PMT(C46/12,C45*12,C43)) -> 5171.123279 | D48: 5171.123279
B49: Annual Interest | C49: =IF(C43=0,0,-CUMIPMT(C46/12,C45*12,C43,1,12,0)) -> 51461.87833 | D49: 51461.87833
B50: Annual Principal | C50: =IF(C43=0,0,-CUMPRINC(C46/12,C45*12,C43,1,12,0)) -> 10591.60102 | D50: 10591.60102
B51: Total Annual Debt Service | C51: =C48*12 -> 62053.47935 | D51: 62053.47935
B52: DEBT SERVICE RATIO | C52: =C33/C51 -> 1.256748224 | D52: 1.551986941
B54: Cash Flow and ROI
B55: Total Monthly Cash Flow | C55: =C11-C28-C48 -> 1327.676721 | D55: 2854.392521
B56: Total Annual Cash Flow | C56: =C33-C51 -> 15932.12065 | D56: 34252.71025
B57: Cash on Cash Return (ROI) | C57: =IF(C47=0," ",C56/C47) -> 0.05380201147 | D57: 0.1156697687
B59: Note: This spreadsheet should only be used for informational and educational purposes. Please verify
B60: calculations and seek professional assistance before making financial decisions.

Sheet Rent Roll
A1: Unit Number | B1: Size | C1: Current Rent | D1: Pro Forma | E1: Subsidized | F1: Notes
A2: 1 | C2: 1050
A3: 2 | C3: 1150 | F3: M2M
A4: 3 | C4: 1275 | F4: M2M
A5: 4 | C5: 1250 | F5: M2M
A6: 5 | C6: 1250
A7: 6 | C7: 1125 | D7: 1150 | F7: 1,150 STARTING 2/1/26
A8: 7 | C8: 1295
A9: 8 | C9: 1350 | E9: 1071 | F9: M2M, HAP CONTRACT (TENANT PAYS DIFFERENCE (279))
A10: 9 | C10: 1200
A11: 10 | C11: 1350 | E11: 1188 | F11: HAP CONTRACT (TENANT PAYS DIFFERENCE (162))
A12: 11 | C12: 1225
C13: =SUM(C2:C12) -> 13520
